{"text_format":"3","workbook":"xlsx","n_sheets":1,"sheets":["Oppstartsutgifter"],"not_rendered":{"defined_names":1},"read":"whole","date_system":"1900"}

{"sheet":"Oppstartsutgifter","index":0,"n_rows":120,"n_cols":4,"rows_kept":120,"merged":[[1,1,1,3],[10,1,10,3],[17,1,17,3],[25,1,25,3],[34,1,34,3],[42,1,42,3],[50,1,50,3],[55,1,55,3],[57,1,57,3],[59,1,59,3],[60,1,60,3],[69,1,69,3],[76,1,76,3],[81,1,81,3],[82,1,82,3],[90,1,90,3],[102,1,102,3],[110,1,110,3],[115,1,115,3]]}
["OPPSTARTSUTGIFTER",null,null,"FIRMANAVN, LTD."]
[null,"FØR DU BRUKER DETTE REGNEARKET\nNesten alle som har startet en bedrift, har undervurdert kostnadene og deretter stått i fare for å drive selskapet uten tilstrekkelige kapitalreserver. For å unngå denne fallgruven er det avgjørende å innføre en streng tilnærming til planleggingen og undersøkelsene du gjør. Vår mal for oppstartsutgifter vil veilede deg gjennom prosessen.\n\nSTART MED Å ANSLÅ UTGIFTER\nHva vil det koste deg å komme i gang med virksomheten din? Nøkkelen til nøyaktighet her er å være oppmerksom på detaljene. Skriv en liste over alt du må kjøpe for hver utgiftskategori. Dette inkluderer både materielle aktiva (f.eks. utstyr, lagerbeholdning) og tjenester (f.eks. ombygging, forsikring). Deretter må du finne ut hvor du kan kjøpe disse varene eller tjenestene. Sjekk hos flere leverandører. Det vil si: sammenlign før du kjøper. Ikke se bare på prisen. Betalingsvilkår, levering, pålitelighet og service er også viktig. "]
[]
[null,"OPPSTARTSUTGIFTER"]
[null,"BYGNINGER/EIENDOM"," ","BELØP"]
[null,"Innkjøp",null,{"v":0,"d":"kr 0.00"}]
[null,"Utførelse",null,{"v":0,"d":"kr 0.00"}]
[null,"Ombygging",null,{"v":0,"d":"kr 0.00"}]
[null,"Annet",null,{"v":0,"d":"kr 0.00"}]
[null,"Totalt",null,{"$f":"SUBTOTAL(109,Eiendom[BELØP])","v":{"v":0,"d":"kr 0.00"}}]
[]
[null,"LEASINGFORBEDRINGER"," ","BELØP"]
[null,"Element 1",null,{"v":0,"d":"kr 0.00"}]
[null,"Element 2",null,{"v":0,"d":"kr 0.00"}]
[null,"Vare 3",null,{"v":0,"d":"kr 0.00"}]
[null,"Element 4",null,{"v":0,"d":"kr 0.00"}]
[null,"Totalt",null,{"$f":"SUBTOTAL(109,Forbedringer[BELØP])","v":{"v":0,"d":"kr 0.00"}}]
[]
[null,"KAPITALUTSTYRSLISTE"," ","BELØP"]
[null,"Møbler",null,{"v":0,"d":"kr 0.00"}]
[null,"Utstyr",null,{"v":0,"d":"kr 0.00"}]
[null,"Faste installasjoner",null,{"v":0,"d":"kr 0.00"}]
[null,"Maskiner",null,{"v":0,"d":"kr 0.00"}]
[null,"Annet",null,{"v":0,"d":"kr 0.00"}]
[null,"Totalt",null,{"$f":"SUBTOTAL(109,Kapital[BELØP])","v":{"v":0,"d":"kr 0.00"}}]
[]
[null,"UTGIFTER FOR PLASSERING OG ADMINISTRASJON"," ","BELØP"]
[null,"Leie",null,{"v":0,"d":"kr 0.00"}]
[null,"Depositum for vann- eller strømregning",null,{"v":0,"d":"kr 0.00"}]
[null,"Advokat- og regnskapsutgifter",null,{"v":0,"d":"kr 0.00"}]
[null,"Forhåndsbetalt forsikring",null,{"v":0,"d":"kr 0.00"}]
[null,"Lønn før oppstart ",null,{"v":0,"d":"kr 0.00"}]
[null,"Annet",null,{"v":0,"d":"kr 0.00"}]
[null,"Totalt",null,{"$f":"SUBTOTAL(109,Administrasjonsutgifter[BELØP])","v":{"v":0,"d":"kr 0.00"}}]
[]
[null,"LAGERBEHOLDNING VED OPPSTART"," ","BELØP"]
[null,"Kategori 1",null,{"v":0,"d":"kr 0.00"}]
[null,"Kategori 2",null,{"v":0,"d":"kr 0.00"}]
[null,"Kategori 3",null,{"v":0,"d":"kr 0.00"}]
[null,"Kategori 4",null,{"v":0,"d":"kr 0.00"}]
[null,"Kategori 5",null,{"v":0,"d":"kr 0.00"}]
[null,"Totalt",null,{"$f":"SUBTOTAL(109,InngåendeLagerbeholdning[BELØP])","v":{"v":0,"d":"kr 0.00"}}]
[]
[null,"UTGIFTER FOR REKLAMEANNONSER OG KAMPANJETILBUD"," ","BELØP"]
[null,"Annonsering",null,{"v":0,"d":"kr 0.00"}]
[null,"Skilting",null,{"v":0,"d":"kr 0.00"}]
[null,"Utskrift",null,{"v":0,"d":"kr 0.00"}]
[null,"Reise/underholdning",null,{"v":0,"d":"kr 0.00"}]
[null,"Andre/flere kategorier",null,{"v":0,"d":"kr 0.00"}]
[null,"Totalt",null,{"$f":"SUBTOTAL(109,Kampanjeutgifter[BELØP])","v":{"v":0,"d":"kr 0.00"}}]
[]
[null,"ANDRE UTGIFTER"," ","BELØP"]
[null,"Andre utgifter 1",null,{"v":0,"d":"kr 0.00"}]
[null,"Andre utgifter 2",null,{"v":0,"d":"kr 0.00"}]
[null,"Totalt",null,{"$f":"SUBTOTAL(109,AndreUtgifter[BELØP])","v":{"v":0,"d":"kr 0.00"}}]
[]
[null,"Reserver for uforutsette utgifter",null,{"v":0,"d":"kr 0.00"}]
[]
[null,"Arbeidskapital ",null,{"v":0,"d":"kr 0.00"}]
[]
[null,"LEGG TIL EN RESERVE FOR UFORUTSETTE UTGIFTER\nPass på å forklare i beskrivelsen hvordan du kom frem til beløpet du setter inn i denne reserven. \n\nFASTSLÅ KONTANTSTRØMMEN\nDu kan ikke starte opp med en tom bankkonto. Du trenger en kontantbuffer for å dekke utgifter i innkjøringsfasen for virksomheten. Etter hvert bør du begynne å utføre 12-måneders kontantstrømprognose. Det er her du vil utarbeide et estimat for hvor mye arbeidskapital du trenger. For øyeblikket kan du enten la denne linjen stå tom eller gi et grovt anslag etter beste evne. Når du har fullført kontantstrømmen, kan du komme tilbake og skrive inn beløpet du har kommet frem til etter nøye undersøkelser.\n\nANGI KAPITALKILDER\nNå som du har beregnet hvor mye kapital du trenger for å starte, bør du rette oppmerksomheten mot den øverste delen av dette regnearket. Angi beløpene du vil sette inn selv, hvor mye som vil bli satt inn av partnere eller investorer, og hvor mye som vil bli skaffet gjennom lån."]
[]
[null,"KAPITALKILDER"]
[null,"EIERNES INVESTERING (NAVN OG EIERANDEL)"," ","BELØP"]
[null,"Ditt navn og eierandel",null,{"v":0,"d":"kr 0.00"}]
[null,"Annen investor",null,{"v":0,"d":"kr 0.00"}]
[null,"Annen investor",null,{"v":0,"d":"kr 0.00"}]
[null,"Annen investor",null,{"v":0,"d":"kr 0.00"}]
[null,"Totalt",null,{"$f":"SUBTOTAL(109,Eierinvesteringer[BELØP])","v":{"v":0,"d":"kr 0.00"}}]
[]
[null,"BANKLÅN"," ","BELØP"]
[null,"Bank 1",null,{"v":0,"d":"kr 0.00"}]
[null,"Bank 2",null,{"v":0,"d":"kr 0.00"}]
[null,"Bank 3",null,{"v":0,"d":"kr 0.00"}]
[null,"Bank 4",null,{"v":0,"d":"kr 0.00"}]
[null,"Totalt",null,{"$f":"SUBTOTAL(109,Banklån[BELØP])","v":{"v":0,"d":"kr 0.00"}}]
[]
[null,"ANDRE LÅN"," ","BELØP"]
[null,"Kilde 1",null,{"v":0,"d":"kr 0.00"}]
[null,"Kilde 2",null,{"v":0,"d":"kr 0.00"}]
[null,"Totalt",null,{"$f":"SUBTOTAL(109,AndreLån[BELØP])","v":{"v":0,"d":"kr 0.00"}}]
[]
[null,"OPPGI PANTEBEVIS\nHvis du skal bruke denne planen til å støtte en banklånforespørsel, kan du bruke delen nederst til å vise hvilke aktiva som tilbys som pant for å sikre lånet, og estimere verdien av disse gjenstandene. Vær forberedt på å tilby noen bevis for estimatene dine av panteverdiene."]
[]
[null,"SAMMENDRAGSSETNING"]
[null,"KAPITALKILDE"," ","TOTALSUMMER"]
[null,"Eiernes investering og andre investeringer",null,{"$f":"Eierinvesteringer[[#Totals],[BELØP]]","v":{"v":0,"d":"kr 0.00"}}]
[null,"Banklån",null,{"$f":"Banklån[[#Totals],[BELØP]]","v":{"v":0,"d":"kr 0.00"}}]
[null,"Andre lån",null,{"$f":"AndreLån[[#Totals],[BELØP]]","v":{"v":0,"d":"kr 0.00"}}]
[null,"Totalt",null,{"$f":"SUBTOTAL(109,Kapitalkilder[TOTALSUMMER])","v":{"v":0,"d":"kr 0.00"}}]
[]
[null,"OPPSTARTSUTGIFTER"," ","TOTALSUMMER"]
[null,"Bygninger/eiendom",null,{"$f":"Eiendom[[#Totals],[BELØP]]","v":{"v":0,"d":"kr 0.00"}}]
[null,"Leasingsforbedringer",null,{"$f":"Forbedringer[[#Totals],[BELØP]]","v":{"v":0,"d":"kr 0.00"}}]
[null,"Kapitalutstyr",null,{"$f":"Kapital[[#Totals],[BELØP]]","v":{"v":0,"d":"kr 0.00"}}]
[null,"Utgifter for lokaler/administrasjon",null,{"$f":"Administrasjonsutgifter[[#Totals],[BELØP]]","v":{"v":0,"d":"kr 0.00"}}]
[null,"Lagerbeholdning ved oppstart",null,{"$f":"InngåendeLagerbeholdning[[#Totals],[BELØP]]","v":{"v":0,"d":"kr 0.00"}}]
[null,"Utgifter for reklame/kampanjetilbud",null,{"$f":"Kampanjeutgifter[[#Totals],[BELØP]]","v":{"v":0,"d":"kr 0.00"}}]
[null,"Andre utgifter",null,{"$f":"AndreUtgifter[[#Totals],[BELØP]]","v":{"v":0,"d":"kr 0.00"}}]
[null,"Fond for uforutsette utgifter",null,{"$f":"SUM(Oppstartsutgifter!$C$57)","v":{"v":0,"d":"kr 0.00"}}]
[null,"Arbeidskapital",null,{"$f":"SUM(Oppstartsutgifter!$C$59)","v":{"v":0,"d":"kr 0.00"}}]
[null,"Totalt",null,{"$f":"SUBTOTAL(109,Oppstartsutgifter[TOTALSUMMER])","v":{"v":0,"d":"kr 0.00"}}]
[]
[null,"SIKKERHET OG PANT TIL LÅNEFORSLAG"]
[null,"PANT TIL LÅN","BESKRIVELSE","VERDI"]
[null,"Eiendom",null,{"v":0,"d":"kr 0.00"}]
[null,"Annen pant",null,{"v":0,"d":"kr 0.00"}]
[null,"Annen pant",null,{"v":0,"d":"kr 0.00"}]
[null,"Annen pant",null,{"v":0,"d":"kr 0.00"}]
[null,"Totalt",null,{"$f":"SUBTOTAL(109,Pant[VERDI])","v":{"v":0,"d":"kr 0.00"}}]
[]
[null,"EIERE"," ","  "]
[null,"Navnet ditt her"]
[null,"Annen eier"]
[null,"Annen eier"]
[]
[null,"KAUSJONISTER (ANDRE ENN EIERNE)"," ","  "]
[null,"Kausjonist 1"]
[null,"Kausjonist 2"]
[null,"Kausjonist 3"]